[Event "36th German Seniors-ch-65 2024"]
[Site "Bad Wildungen"]
[Date "2024.08.26"]
[Round "4.16"]
[White "Wenner, Tobias"]
[Black "Gollasch, Theo-Heinz"]
[Result "1/2-1/2"]
[ECO "D79"]
[WhiteElo "2067"]
[BlackElo "2006"]
[Annotator "RC"]
[PlyCount "96"]
[EventDate "2024.08.22"]
[EventType "swiss"]
[EventCountry "GER"]
[SourceTitle "playchess.com"]
[Source "ChessBase"]
[SourceQuality "1"]
[TimeControl "40/5400+30:1800+30"]

1. Nf3 {[%emt 0:00:03]} d5 {[%emt 0:03:10]} 2. c4 {[%emt 0:00:08]} c6 {[%emt 0:00:31]} 3. g3 {[%emt 0:00:46]} g6 {[%emt 0:00:22]} 4. Bg2 {[%emt 0:01:12]} Bg7 {[%emt 0:00:12]} 5. cxd5 {[%emt 0:00:44]} cxd5 {[%emt 0:00:09]} 6. d4 {[%emt 0:00:13]} Nf6 {[%emt 0:00:56]} 7. O-O {[%emt 0:00:50]} O-O {[%emt 0:00:06]} 8. Ne5 {[%emt 0:00:28]} e6 {[%emt 0:02:21]} 9. Nc3 {[%emt 0:00:43]} Nfd7 {[%emt 0:01:21]} 10. Nf3 {[%emt 0:04:47]} Nf6 {[%emt 0:01:25]} 11. Ne5 {[%emt 0:00:55]} Nfd7 {[%emt 0:01:29]} 12. Nf3 {[%emt 0:02:22]} Nf6 {[%emt 0:00:29]} 13. Bf4 {[%emt 0:02:58]} a6 {[%emt 0:00:48]} 14. Qd2 {[%emt 0:04:55]} Ne4 {[%emt 0:04:35]} 15. Nxe4 {[%emt 0:01:44]} dxe4 {[%emt 0:00:08]} 16. Ne5 {[%emt 0:00:54]} f5 {[%emt 0:05:49]} 17. Rfd1 {[%emt 0:02:50]} Nd7 {[%emt 0:04:38]} 18. Nc4 {[%emt 0:01:40]} Nb6 {[%emt 0:01:05]} 19. Rac1 {[%emt 0:04:37]} Nxc4 {[%emt 0:02:40]} 20. Rxc4 {[%emt 0:00:10]} b5 {[%emt 0:00:23]} 21. Rc5 {[%emt 0:15:28]} Bb7 {[%emt 0:01:51]} 22. Bh6 {[%emt 0:03:05]} Rf7 {[%emt 0:00:19]} 23. Bxg7 {[%emt 0:01:40]} Kxg7 {[%emt 0:00:06]} 24. Rdc1 {[%emt 0:03:23]} Qd6 {[%emt 0:05:41]} 25. e3 {[%emt 0:00:59]} Rd8 {[%emt 0:02:11]} 26. Qc3 {[%emt 0:02:18]} Kh6 {[%emt 0:02:45]} 27. h4 {[%emt 0:01:39]} Qb6 {[%emt 0:01:12]} 28. b3 {[%emt 0:05:06]} Rdd7 {[%emt 0:01:40]} 29. Bf1 {[%emt 0:04:29]} Bd5 {[%emt 0:03:20]} 30. a3 {[%emt 0:01:43]} Rb7 {[%emt 0:00:56]} 31. b4 {[%emt 0:00:37]} Kg7 {[%emt 0:00:43]} 32. Be2 {[%emt 0:02:58]} Qd6 {[%emt 0:03:02]} 33. Rc8 {[%emt 0:02:32]} Kf6 {[%emt 0:02:06]} 34. Rc5 {[%emt 0:11:48]} h6 {[%emt 0:00:18]} 35. Rc8 {[%emt 0:00:48]} Rb8 {[%emt 0:05:47]} 36. Rxb8 {[%emt 0:04:47]} Qxb8 {[%emt 0:01:31]} 37. Qc5 {[%emt 0:00:23]} Rb7 {[%emt 0:02:38]} 38. Qc8 {[%emt 0:05:34]} Qxc8 {[%emt 0:03:42]} 39. Rxc8 {[%emt 0:00:01]} Rb6 {[%emt 0:00:15]} 40. Rc5 {[%emt 0:00:53]} Rb7 {[%emt 0:06:05]} 41. Kf1 {[%emt 0:31:06]} g5 {[%emt 0:30:14]} 42. Rc8 {[%emt 0:06:21]} Rb6 {[%emt 0:00:58]} 43. Ke1 {[%emt 0:00:00]} Rc6 {[%emt 0:00:00]} 44. Rxc6 {[%emt 0:00:00]} Bxc6 {[%emt 0:00:00]} 45. hxg5+ {[%emt 0:00:00]} hxg5 {[%emt 0:00:00]} 46. Kd2 {[%emt 0:00:00]} Ke7 {[%emt 0:00:00]} 47. Bh5 {[%emt 0:00:00]} g4 {[%emt 0:00:00]} 48. Kc3 {[%emt 0:00:00]} Kd6 {[%emt 0:00:00]} 1/2-1/2

[Event "36th German Seniors-ch-65 2024"]
[Site "Bad Wildungen"]
[Date "2024.08.26"]
[Round "4.17"]
[White "Juhnke, Juergen"]
[Black "Schubert, Hans Joachim"]
[Result "1-0"]
[ECO "B89"]
[WhiteElo "2259"]
[BlackElo "2064"]
[Annotator "RC"]
[PlyCount "49"]
[EventDate "2024.08.22"]
[EventType "swiss"]
[EventCountry "GER"]
[SourceTitle "playchess.com"]
[Source "ChessBase"]
[SourceQuality "1"]
[TimeControl "40/5400+30:1800+30"]

1. e4 {[%emt 0:00:03]} c5 {[%emt 0:00:02]} 2. Nf3 {[%emt 0:00:11]} Nc6 {[%emt 0:00:03]} 3. d4 {[%emt 0:00:06]} cxd4 {[%emt 0:00:17]} 4. Nxd4 {[%emt 0:00:03]} Nf6 {[%emt 0:00:04]} 5. Nc3 {[%emt 0:00:08]} d6 {[%emt 0:00:16]} 6. Bc4 {[%emt 0:00:15]} e6 {[%emt 0:00:03]} 7. Be3 {[%emt 0:00:18]} Bd7 {[%emt 0:01:37]} 8. Qe2 {[%emt 0:00:31]} a6 {[%emt 0:00:32]} 9. O-O-O {[%emt 0:00:58]} Qc7 {[%emt 0:00:31]} 10. Bb3 {[%emt 0:00:37]} Na5 {[%emt 0:02:50]} 11. g4 {[%emt 0:01:29]} h6 {[%emt 0:02:12]} 12. h4 {[%emt 0:09:31]} Rc8 {[%emt 0:02:56]} 13. g5 {[%emt 0:02:27]} Ng8 {[%emt 0:00:17]} 14. Kb1 {[%emt 0:01:41]} b5 {[%emt 0:02:30]} 15. f4 {[%emt 0:02:42]} Nc4 {[%emt 0:01:13]} 16. f5 {[%emt 0:07:03]} Nxb2 {[%emt 0:01:21]} 17. fxe6 {[%emt 0:00:28]} fxe6 {[%emt 0:00:54]} 18. Ncxb5 {[%emt 0:07:23]} axb5 {[%emt 0:00:16]} 19. Kxb2 {[%emt 0:00:08]} Qc3+ {[%emt 0:10:16]} 20. Kb1 {[%emt 0:00:14]} Qb4 {[%emt 0:01:56]} 21. Qh5+ {[%emt 0:00:48]} Ke7 {[%emt 0:12:13]} 22. Nf5+ {[%emt 0:03:22]} Kd8 {[%emt 0:04:27]} 23. Bb6+ {[%emt 0:00:57]} Rc7 {[%emt 0:00:13]} 24. Qf7 {[%emt 0:01:08]} Ne7 {[%emt 0:01:00]} 25. Nxe7 {[%emt 0:00:30]} 1-0

[Event "36th German Seniors-ch-65 2024"]
[Site "Bad Wildungen"]
[Date "2024.08.26"]
[Round "4.18"]
[White "Walther, Reinhard"]
[Black "Heinig, Wolfram"]
[Result "0-1"]
[ECO "D00"]
[WhiteElo "1983"]
[BlackElo "2215"]
[Annotator "RC"]
[PlyCount "42"]
[EventDate "2024.08.22"]
[EventType "swiss"]
[EventCountry "GER"]
[SourceTitle "playchess.com"]
[Source "ChessBase"]
[SourceQuality "1"]
[TimeControl "40/5400+30:1800+30"]

1. d4 {[%emt 0:00:08]} d5 {[%emt 0:00:22]} 2. Bf4 {[%emt 0:00:15]} Nf6 {[%emt 0:00:26]} 3. e3 {[%emt 0:00:10]} e6 {[%emt 0:00:19]} 4. Nd2 {[%emt 0:00:29]} c5 {[%emt 0:00:22]} 5. c3 {[%emt 0:00:16]} Nc6 {[%emt 0:00:09]} 6. Bd3 {[%emt 0:00:49]} Bd6 {[%emt 0:00:28]} 7. dxc5 {[%emt 0:02:04]} Bxc5 {[%emt 0:01:02]} 8. Ngf3 {[%emt 0:01:57]} O-O {[%emt 0:02:08]} 9. Ne5 {[%emt 0:05:39]} Nxe5 {[%emt 0:18:00]} 10. Bxe5 {[%emt 0:00:03]} Bd6 {[%emt 0:02:33]} 11. Nf3 {[%emt 0:08:26]} Bxe5 {[%emt 0:02:41]} 12. Nxe5 {[%emt 0:00:03]} Qc7 {[%emt 0:04:30]} 13. f4 {[%emt 0:04:58]} Nd7 {[%emt 0:03:36]} 14. Nf3 {[%emt 0:03:40]} e5 {[%emt 0:02:38]} 15. Bxh7+ {[%emt 0:02:55]} Kxh7 {[%emt 0:01:01]} 16. Ng5+ {[%emt 0:00:09]} Kg8 {[%emt 0:00:20]} 17. O-O {[%emt 0:02:33]} Nf6 {[%emt 0:01:46]} 18. Qc2 {[%emt 0:01:52]} g6 {[%emt 0:04:03]} 19. Nxf7 {[%emt 0:04:58]} Kxf7 {[%emt 0:00:31]} 20. fxe5 {[%emt 0:00:27]} Qxe5 {[%emt 0:00:04]} 21. Qb3 {[%emt 0:03:47]} Kg7 {[%emt 0:00:45]} 0-1

[Event "36th German Seniors-ch-65 2024"]
[Site "Bad Wildungen"]
[Date "2024.08.26"]
[Round "4.19"]
[White "Byhan, Gert"]
[Black "Vatter, Hans-Joachim"]
[Result "0-1"]
[ECO "B20"]
[WhiteElo "1975"]
[BlackElo "2212"]
[Annotator "RC"]
[PlyCount "45"]
[EventDate "2024.08.22"]
[EventType "swiss"]
[EventCountry "GER"]
[SourceTitle "playchess.com"]
[Source "ChessBase"]
[SourceQuality "1"]
[TimeControl "40/5400+30:1800+30"]

1. e4 {[%emt 0:00:48]} c5 {[%emt 0:00:12]} 2. b3 {[%emt 0:00:57]} g6 {[%emt 0:04:00]} 3. Bb2 {[%emt 0:01:37]} Nf6 {[%emt 0:00:04]} 4. e5 {[%emt 0:01:41]} Nd5 {[%emt 0:03:46]} 5. Nc3 {[%emt 0:06:51]} Nxc3 {[%emt 0:09:04]} 6. Bxc3 {[%emt 0:00:27]} Bg7 {[%emt 0:00:11]} 7. e6 {[%emt 0:02:14]} f6 {[%emt 0:00:13]} 8. exd7+ {[%emt 0:00:05]} Bxd7 {[%emt 0:00:29]} 9. f4 {[%emt 0:06:29]} Qc7 {[%emt 0:04:20]} 10. g3 {[%emt 0:06:17]} Bc6 {[%emt 0:04:39]} 11. Nf3 {[%emt 0:01:54]} Nd7 {[%emt 0:00:01]} 12. Bg2 {[%emt 0:05:12]} O-O-O {[%emt 0:06:00]} 13. Qe2 {[%emt 0:02:30]} Rhe8 {[%emt 0:03:37]} 14. O-O-O {[%emt 0:03:23]} e5 {[%emt 0:03:43]} 15. fxe5 {[%emt 0:01:00]} Bxf3 {[%emt 0:00:36]} 16. Qxf3 {[%emt 0:04:50]} Nxe5 {[%emt 0:00:07]} 17. Qf2 {[%emt 0:05:18]} f5 {[%emt 0:03:58]} 18. Bxe5 {[%emt 0:06:46]} Qxe5 {[%emt 0:11:56]} 19. c3 {[%emt 0:01:41]} Bh6 {[%emt 0:00:18]} 20. Kc2 {[%emt 0:03:47]} Qd6 {[%emt 0:20:17]} 21. d3 {[%emt 0:03:46]} Re3 {[%emt 0:03:16]} 22. d4 {[%emt 0:07:58]} Qa6 {[%emt 0:00:29]} 23. Qf4 {[%emt 0:26:29]} 0-1

[Event "36th German Seniors-ch-65 2024"]
[Site "Bad Wildungen"]
[Date "2024.08.26"]
[Round "4.20"]
[White "Schaefer, Martin"]
[Black "Babrikowski, Peter"]
[Result "0-1"]
[ECO "A14"]
[WhiteElo "1982"]
[BlackElo "2153"]
[Annotator "RC"]
[PlyCount "64"]
[EventDate "2024.08.22"]
[EventType "swiss"]
[EventCountry "GER"]
[SourceTitle "playchess.com"]
[Source "ChessBase"]
[SourceQuality "1"]
[TimeControl "40/5400+30:1800+30"]

1. d4 {[%emt 0:00:01]} Nf6 {[%emt 0:00:36]} 2. c4 {[%emt 0:00:07]} e6 {[%emt 0:00:14]} 3. g3 {[%emt 0:00:13]} d5 {[%emt 0:00:28]} 4. Nf3 {[%emt 0:00:31]} Be7 {[%emt 0:01:05]} 5. Bg2 {[%emt 0:00:09]} O-O {[%emt 0:00:17]} 6. O-O {[%emt 0:00:08]} Nbd7 {[%emt 0:01:24]} 7. b3 {[%emt 0:04:06]} c5 {[%emt 0:05:23]} 8. cxd5 {[%emt 0:02:04]} Nxd5 {[%emt 0:00:36]} 9. Bb2 {[%emt 0:02:10]} N7f6 {[%emt 0:08:54]} 10. dxc5 {[%emt 0:05:10]} Bxc5 {[%emt 0:04:37]} 11. a3 {[%emt 0:01:17]} b6 {[%emt 0:09:37]} 12. b4 {[%emt 0:03:59]} Bd6 {[%emt 0:00:39]} 13. Nbd2 {[%emt 0:00:54]} Ba6 {[%emt 0:00:41]} 14. Re1 {[%emt 0:02:33]} Be7 {[%emt 0:13:54]} 15. Qa4 {[%emt 0:09:38]} Bb7 {[%emt 0:10:12]} 16. Rad1 {[%emt 0:10:08]} Qe8 {[%emt 0:05:14]} 17. Qb3 {[%emt 0:02:11]} Bc6 {[%emt 0:00:24]} 18. Rc1 {[%emt 0:01:20]} Rc8 {[%emt 0:04:42]} 19. Nd4 {[%emt 0:06:28]} Bd7 {[%emt 0:00:25]} 20. e4 {[%emt 0:01:47]} Nc7 {[%emt 0:00:19]} 21. Nc4 {[%emt 0:05:40]} Ba4 {[%emt 0:03:51]} 22. Qa2 {[%emt 0:00:34]} Nb5 {[%emt 0:27:58]} 23. Ne2 {[%emt 0:02:58]} Qd7 {[%emt 0:00:00]} 24. h3 {[%emt 0:02:49]} Rfd8 {[%emt 0:00:00]} 25. Be5 {[%emt 0:01:48]} Qd3 {[%emt 0:00:00]} 26. Nc3 {[%emt 0:08:37]} Qxc4 {[%emt 0:00:00]} 27. Qxc4 {[%emt 0:01:33]} Rxc4 {[%emt 0:00:00]} 28. Nxa4 {[%emt 0:00:07]} Nxa3 {[%emt 0:00:00]} 29. Rxc4 {[%emt 0:05:34]} Nxc4 {[%emt 0:00:00]} 30. Bxf6 {[%emt 0:00:13]} Bxf6 {[%emt 0:00:00]} 31. f4 {[%emt 0:05:27]} Bd4+ {[%emt 0:00:00]} 32. Kf1 {[%emt 0:00:01]} Ne3+ {[%emt 0:00:00]} 0-1

[Event "36th German Seniors-ch-65 2024"]
[Site "Bad Wildungen"]
[Date "2024.08.26"]
[Round "4.21"]
[White "Kierzek, Matthias"]
[Black "Roettinger, Eugen"]
[Result "0-1"]
[ECO "D37"]
[WhiteElo "2140"]
[BlackElo "1990"]
[Annotator "RC"]
[PlyCount "74"]
[EventDate "2024.08.22"]
[EventType "swiss"]
[EventCountry "GER"]
[SourceTitle "playchess.com"]
[Source "ChessBase"]
[SourceQuality "1"]
[TimeControl "40/5400+30:1800+30"]

1. d4 {[%emt 0:00:04]} d5 {[%emt 0:00:20]} 2. c4 {[%emt 0:00:08]} e6 {[%emt 0:01:18]} 3. Nf3 {[%emt 0:00:08]} Nf6 {[%emt 0:00:05]} 4. Nc3 {[%emt 0:00:07]} Be7 {[%emt 0:00:29]} 5. Bf4 {[%emt 0:00:12]} O-O {[%emt 0:00:45]} 6. e3 {[%emt 0:00:04]} dxc4 {[%emt 0:01:44]} 7. Bxc4 {[%emt 0:00:24]} Nd5 {[%emt 0:00:05]} 8. Bg3 {[%emt 0:04:12]} Nxc3 {[%emt 0:09:12]} 9. bxc3 {[%emt 0:00:11]} c5 {[%emt 0:00:09]} 10. O-O {[%emt 0:02:21]} Nc6 {[%emt 0:04:22]} 11. Qe2 {[%emt 0:05:25]} Bd6 {[%emt 0:05:50]} 12. Ne5 {[%emt 0:04:41]} Bxe5 {[%emt 0:04:24]} 13. dxe5 {[%emt 0:00:14]} Qc7 {[%emt 0:00:15]} 14. f4 {[%emt 0:06:28]} Na5 {[%emt 0:06:40]} 15. Bd3 {[%emt 0:00:30]} c4 {[%emt 0:04:17]} 16. Bc2 {[%emt 0:16:37]} b5 {[%emt 0:09:54]} 17. Qh5 {[%emt 0:00:30]} f5 {[%emt 0:49:11]} 18. exf6 {[%emt 0:00:50]} gxf6 {[%emt 0:00:00]} 19. Be4 {[%emt 0:05:50]} Bb7 {[%emt 0:00:00]} 20. Qg4+ {[%emt 0:05:32]} Kh8 {[%emt 0:00:00]} 21. Bxb7 {[%emt 0:00:36]} f5 {[%emt 0:00:00]} 22. Qh5 {[%emt 0:06:17]} Nxb7 {[%emt 0:00:00]} 23. e4 {[%emt 0:01:49]} fxe4 {[%emt 0:00:00]} 24. Bf2 {[%emt 0:03:48]} Rf5 {[%emt 0:00:00]} 25. Qg4 {[%emt 0:03:26]} Rd8 {[%emt 0:00:00]} 26. Rad1 {[%emt 0:07:43]} Rxd1 {[%emt 0:00:00]} 27. Rxd1 {[%emt 0:00:04]} h5 {[%emt 0:00:00]} 28. Qg6 {[%emt 0:02:50]} Qxf4 {[%emt 0:00:00]} 29. Bd4+ {[%emt 0:05:14]} e5 {[%emt 0:00:00]} 30. Qe8+ {[%emt 0:05:33]} Kh7 {[%emt 0:00:00]} 31. Bxa7 {[%emt 0:00:42]} Nd6 {[%emt 0:00:00]} 32. Qd7+ {[%emt 0:02:19]} Nf7 {[%emt 0:00:00]} 33. Qd2 {[%emt 0:01:18]} Ng5 {[%emt 0:01:34]} 34. Be3 {[%emt 0:00:58]} Nh3+ {[%emt 0:00:20]} 35. Kh1 {[%emt 0:00:53]} Qf1+ {[%emt 0:01:32]} 36. Bg1 {[%emt 0:00:12]} Nf2+ {[%emt 0:01:19]} 37. Qxf2 {[%emt 0:00:08]} Rxf2 {[%emt 0:00:08]} 0-1

[Event "36th German Seniors-ch-65 2024"]
[Site "Bad Wildungen"]
[Date "2024.08.26"]
[Round "4.22"]
[White "Erler, Rainer"]
[Black "Scharping, Hans-Martin"]
[Result "1/2-1/2"]
[ECO "B25"]
[WhiteElo "2122"]
[BlackElo "1978"]
[Annotator "RC"]
[PlyCount "70"]
[EventDate "2024.08.22"]
[EventType "swiss"]
[EventCountry "GER"]
[SourceTitle "playchess.com"]
[Source "ChessBase"]
[SourceQuality "1"]
[TimeControl "40/5400+30:1800+30"]

1. e4 {[%emt 0:00:03]} c5 {[%emt 0:00:08]} 2. Nc3 {[%emt 0:00:04]} Nc6 {[%emt 0:00:08]} 3. g3 {[%emt 0:00:04]} g6 {[%emt 0:00:08]} 4. Bg2 {[%emt 0:00:03]} Bg7 {[%emt 0:00:07]} 5. d3 {[%emt 0:00:13]} d6 {[%emt 0:00:15]} 6. Nh3 {[%emt 0:00:34]} Nf6 {[%emt 0:00:21]} 7. O-O {[%emt 0:00:34]} O-O {[%emt 0:00:37]} 8. a4 {[%emt 0:04:06]} Bg4 {[%emt 0:02:07]} 9. f3 {[%emt 0:02:20]} Bd7 {[%emt 0:00:07]} 10. Nf2 {[%emt 0:00:42]} Rb8 {[%emt 0:02:10]} 11. f4 {[%emt 0:05:15]} a6 {[%emt 0:04:24]} 12. Re1 {[%emt 0:05:47]} Ne8 {[%emt 0:03:30]} 13. Nd5 {[%emt 0:03:36]} e6 {[%emt 0:03:45]} 14. Ne3 {[%emt 0:00:24]} f5 {[%emt 0:00:25]} 15. c3 {[%emt 0:00:34]} b5 {[%emt 0:01:46]} 16. axb5 {[%emt 0:06:26]} axb5 {[%emt 0:00:10]} 17. Bd2 {[%emt 0:00:32]} Nc7 {[%emt 0:00:37]} 18. Rb1 {[%emt 0:06:14]} Kh8 {[%emt 0:02:22]} 19. b4 {[%emt 0:02:01]} cxb4 {[%emt 0:00:18]} 20. cxb4 {[%emt 0:00:01]} Ra8 {[%emt 0:07:22]} 21. Qc1 {[%emt 0:02:17]} Nd4 {[%emt 0:06:33]} 22. Nc2 {[%emt 0:02:00]} Rc8 {[%emt 0:00:55]} 23. Nxd4 {[%emt 0:01:12]} Bxd4 {[%emt 0:00:15]} 24. Bc3 {[%emt 0:00:53]} Qf6 {[%emt 0:10:30]} 25. e5 {[%emt 0:02:23]} dxe5 {[%emt 0:00:08]} 26. fxe5 {[%emt 0:00:01]} Bxf2+ {[%emt 0:00:13]} 27. Kxf2 {[%emt 0:00:02]} Qf7 {[%emt 0:03:59]} 28. Kg1 {[%emt 0:07:42]} Rfd8 {[%emt 0:02:21]} 29. Ra1 {[%emt 0:10:30]} Qe8 {[%emt 0:03:19]} 30. Bd4 {[%emt 0:08:40]} Nd5 {[%emt 0:04:40]} 31. Qb2 {[%emt 0:00:49]} Bc6 {[%emt 0:00:36]} 32. Bc5 {[%emt 0:14:06]} Ra8 {[%emt 0:01:12]} 33. h4 {[%emt 0:05:19]} Rxa1 {[%emt 0:01:19]} 34. Rxa1 {[%emt 0:00:00]} Ra8 {[%emt 0:00:32]} 35. Kh2 {[%emt 0:12:33]} h6 {[%emt 0:02:19]} 1/2-1/2

[Event "36th German Seniors-ch-65 2024"]
[Site "Bad Wildungen"]
[Date "2024.08.27"]
[Round "5.1"]
[White "Schrems, Hermann"]
[Black "Behrens, Harald"]
[Result "1/2-1/2"]
[ECO "E18"]
[WhiteElo "2118"]
[BlackElo "2206"]
[Annotator "TA"]
[PlyCount "39"]
[EventDate "2024.08.22"]
[EventType "swiss"]
[EventCountry "GER"]
[SourceTitle "playchess.com"]
[Source "ChessBase"]
[SourceQuality "1"]
[TimeControl "40/5400+30:1800+30"]

{[%evp 21,39,110,119,120,118,27,54,0,0,0,0,0,11,12,5,0,0,6,9,12]} 1. d4 {[%emt 0:00:03]} Nf6 {[%emt 0:00:10]} 2. Nf3 {[%emt 0:00:14]} e6 {[%emt 0:00:08]} 3. g3 {[%emt 0:00:04]} b6 {[%emt 0:00:05]} 4. Bg2 {[%emt 0:00:03]} Bb7 {[%emt 0:00:06]} 5. O-O {[%emt 0:00:05]} d5 {[%emt 0:00:08]} 6. c4 {[%emt 0:01:08]} Be7 {[%emt 0:02:17]} 7. Nc3 {[%emt 0:00:29]} O-O {[%emt 0:01:44]} 8. Ne5 {[%emt 0:02:01]} Nbd7 {[%emt 0:01:58]} 9. Qa4 {[%emt 0:00:45]} Nxe5 {[%emt 0:00:29]} 10. dxe5 {[%emt 0:00:07]} Nd7 {[%emt 0:00:08]} 11. cxd5 {[%emt 0:00:31]} exd5 {[%emt 0:00:09]} 12. Nxd5 {[%emt 0:02:57]} Nc5 {[%emt 0:00:07]} 13. Nxe7+ {[%emt 0:00:08]} (13. Qc4 $16 {Black must now prevent Rd1.} Bxd5 14. Qxd5 (14. Bxd5 b5 $17) 14... Qxd5 15. Bxd5) 13... Qxe7 $11 {[%emt 0:00:06]} 14. Qc2 {[%emt 0:03:05]} (14. Qd4 $14) 14... Bxg2 $1 {[%emt 0:01:16] The position is equal.} 15. Kxg2 {[%emt 0:00:09]} Qxe5 {[%emt 0:00:25]} 16. Bf4 {[%emt 0:00:11]} Qe7 {[%emt 0:03:35]} 17. Rad1 {[%emt 0:02:25]} Rad8 {[%emt 0:02:26]} 18. h4 {[%emt 0:08:30]} Ne6 {[%emt 0:04:17]} 19. Be3 {[%emt 0:00:32]} c5 {[%emt 0:02:49]} 20. Rxd8 {[%emt 0:04:56] White got outplayed after the opening.   Weighted Error Value: White=0.29 (precise) /Black=0.03 (flawless) .  Mistake:       	White=2     	---        Inaccurate:     	---       	Black=1      OK:         	White=3     	Black=3      Best:        	---       	Black=1      Strong:       	---       	Black=1} 1/2-1/2

[Event "36th German Seniors-ch-65 2024"]
[Site "Bad Wildungen"]
[Date "2024.08.27"]
[Round "5.2"]
[White "Brueggemann, Joachim"]
[Black "Rosen, Willy"]
[Result "0-1"]
[ECO "B33"]
[WhiteElo "2267"]
[BlackElo "2091"]
[Annotator "TA"]
[PlyCount "78"]
[EventDate "2024.08.22"]
[EventType "swiss"]
[EventCountry "GER"]
[SourceTitle "playchess.com"]
[Source "ChessBase"]
[SourceQuality "1"]
[TimeControl "40/5400+30:1800+30"]

{[%evp 16,78,51,37,34,34,34,14,11,10,18,28,69,0,91,-7,4,-12,0,-12,28,28,35,0,161,13,61,-18,-12,-74,-85,-245,-193,-331,-355,-365,-260,-262,-268,-396,-356,-319,-277,-261,22,45,31,-6,-8,-7,11,28,51,23,12,27,14,16,15,-29995,-29996,-29996,-29997,-29997,-29997]} 1. e4 {[%emt 0:00:02]} c5 {[%emt 0:00:10]} 2. Nf3 {[%emt 0:00:05]} Nc6 {[%emt 0:00:06]} 3. d4 {[%emt 0:00:06]} cxd4 {[%emt 0:00:05]} 4. Nxd4 {[%emt 0:00:04]} Qb6 {[%emt 0:00:05]} 5. Nb3 {[%emt 0:00:22]} Nf6 {[%emt 0:00:08]} 6. Nc3 {[%emt 0:00:21]} e6 {[%emt 0:00:06]} 7. Bd3 {[%emt 0:01:13]} Qc7 {[%emt 0:04:09]} 8. O-O {[%emt 0:06:26]} a6 {[%emt 0:00:14]} 9. f4 {[%emt 0:01:13]} d6 {[%emt 0:00:08] B33: Sicilian: Pelikan and Sveshnikov Variations.} 10. Qf3 {[%emt 0:02:34]} b5 {[%emt 0:08:11]} 11. Bd2 {[%emt 0:00:23]} Bb7 {[%emt 0:03:32]} 12. Rae1 {[%emt 0:05:41]} Be7 {[%emt 0:05:41]} 13. Qg3 $146 {[%emt 0:03:06]} ({Predecessor:} 13. Kh1 h5 14. Be3 h4 15. h3 Nh5 16. Bf2 g5 17. Nd5 exd5 18. exd5 Nb4 19. fxg5 Nxd5 {½-½ Tissir,M (2387)-Smirin,I (2609) Wch Rapid St Petersburg 2018 (5)}) 13... h5 {[%emt 0:07:58]} 14. Nd1 {[%emt 0:09:12]} (14. Qxg7 $2 Rg8 15. Qh6 Rg6 $19) (14. e5 $14 dxe5 15. fxe5) 14... a5 {[%emt 0:09:24] [#]} (14... h4 $11 {keeps the balance.} 15. Qh3 (15. Qxg7 Kd7 $17) 15... b4) 15. Nf2 {[%emt 0:09:10]} (15. Bxb5 $2 Qb6+ 16. Be3 Qxb5 $19) (15. Qxg7 $2 Rg8 16. Qh6 Rg6 $19) (15. Nc3 $1 $16) 15... a4 $11 {[%emt 0:04:07] And now ...h4 would win.} 16. Nc1 {[%emt 0:00:15]} (16. Qxg7 $2 Rg8 17. Qh6 Rg6 $19 (17... axb3 $2 18. f5 $19) (17... axb3 $2 18. f5 $19)) 16... h4 {[%emt 0:06:14]} 17. Qh3 {[%emt 0:06:22]} (17. Qxg7 Rg8 18. Qh6 O-O-O $17) 17... Ba6 {[%emt 0:05:07]} 18. a3 {[%emt 0:01:15]} Na5 {[%emt 0:04:50]} 19. e5 {[%emt 0:08:33]} Nd7 $2 {[%emt 0:04:45] [#]} (19... dxe5 $11 {and Black has nothing to worry.} 20. fxe5 Nd5) 20. Qg4 {[%emt 0:10:40]} (20. exd6 $1 $18 Bxd6 21. Bc3) 20... Nc4 {[%emt 0:08:50]} (20... dxe5 $11 21. fxe5 (21. Qxg7 Bf6 $11) 21... Nc4) 21. Bc3 {[%emt 0:03:01]} ({White should play} 21. Qxg7 $14 O-O-O 22. Qxf7 Nxd2 23. Qxe7 dxe5 24. Qxe6) 21... O-O-O {[%emt 0:00:45][%cal Rd6e5]} 22. b3 {[%emt 0:04:48]} (22. Qxg7 $11 {remains equal.} Rdf8 23. Bb4) 22... Ncxe5 $1 $17 {[%emt 0:00:35]} (22... Nxa3 23. Bb4 Nxe5 24. fxe5 Nxc2 25. Bxc2 Qxc2 26. bxa4 $18 (26. Qxg7 $2 Rhg8 $19)) 23. Bxe5 $2 {[%emt 0:01:20]} (23. fxe5 $17 {was called for.} Qxc3 24. Ne2) 23... dxe5 $19 {[%emt 0:00:09]} 24. fxe5 {[%emt 0:02:22]} (24. Qh3 {was necessary.}) 24... Nxe5 {[%emt 0:02:05]} 25. Qe2 {[%emt 0:09:43]} Nxd3 {[%emt 0:02:11]} 26. Ncxd3 {[%emt 0:00:09]} h3 {[%emt 0:02:49]} (26... Bxa3 27. bxa4 b4 (27... bxa4 $2 28. Qe4 $19) 28. Qf3 $19) 27. gxh3 {[%emt 0:03:52]} (27. Nxh3 {was worth a try.} Bf6 (27... Bxa3 $2 28. bxa4 bxa4 29. Qf3 $19) 28. bxa4) 27... Bd6 {[%emt 0:01:29]} (27... Bxa3 28. Ra1 Be7 29. Rfb1 $19) 28. Ne4 {[%emt 0:00:49]} Bb7 {[%emt 0:03:06]} (28... Bxa3 29. Qe3 $19) (28... Rxh3 29. Nxd6+ Rxd6 30. Qg2 Qa7+ 31. Qf2 Qxf2+ 32. Rxf2 $17) 29. bxa4 {[%emt 0:02:14]} Be5 $2 {[%emt 0:06:59]} (29... bxa4 30. Nxd6+ Rxd6 31. Qe3 $17) ({Better is} 29... Bxa3 $19 30. axb5 Rxh3) 30. Nxe5 $11 {[%emt 0:00:50]} Qxe5 {[%emt 0:00:03]} 31. Qxb5 {[%emt 0:00:09]} Qd4+ {[%emt 0:00:53]} 32. Rf2 {[%emt 0:02:17]} Rd5 {[%emt 0:00:16] Repels Nc5} (32... Bxe4 $5 33. c3 $8 (33. Rxe4 $2 Qxe4 34. Qc5+ Kb8 $19) 33... Qxc3 34. Rxe4 Rd1+ (34... Qxa3 35. Rc4+) 35. Rf1 Rxf1+ 36. Qxf1 Qc5+ 37. Kh1 Qd5 38. Qa6+ Kd7 39. Qa7+ Kd6 40. Qb6+ Qc6 41. Qxc6+ Kxc6 $11) 33. Qb4 {[%emt 0:03:18]} (33. Qd3 {simplifies} Qxf2+ 34. Nxf2 Rxd3 35. Nxd3 Rxh3 36. Re5) 33... Rhh5 {[%emt 0:05:09][%cal Od5g5,Bh8h5,Bh5c5,Bc5c2][%mdl 32] Threatens to win with ...Rdg5+!} 34. Qxd4 {[%emt 0:01:50]} Rxd4 {[%emt 0:00:02]} 35. Ng3 {[%emt 0:00:13]} Rc5 {[%emt 0:00:47]} 36. Rxf7 {[%emt 0:00:14]} Rxc2 {[%emt 0:02:01]} 37. Rxe6 $2 {[%emt 0:01:40][%mdl 8192]} (37. Re2 $11 Rdd2 38. Rxd2 (38. Rxe6 {is a self mate.} Rd1+) 38... Rxd2 39. Rxg7) 37... Rd1+ {[%emt 0:00:56]} ({And not} 37... Rxa4 38. Re8#) 38. Nf1 {[%emt 0:01:11]} Rg2+ {[%emt 0:00:15]} 39. Kh1 {[%emt 0:00:01]} Rxf1+ {[%emt 0:00:37]} 0-1